[Event "FIDE World Junior U20-ch Girls 2025"]
[Site "Petrovac"]
[Date "2025.03.01"]
[Round "5.32"]
[White "Sneha Halder"]
[Black "Morales Perez, Ghisell"]
[Result "1-0"]
[Annotator "NA"]
[ECO "A46"]
[WhiteElo "2065"]
[BlackElo "1902"]
[PlyCount "79"]
[EventDate "2025.02.23"]
[EventType "swiss"]
[EventCountry "MNE"]
[SourceTitle "playchess.com"]
[Source "ChessBase"]
[SourceQuality "1"]
[TimeControl "40/5400+30:1800+30"]

1. d4 {[%emt 0:02:37]} Nf6 {[%emt 0:00:17]} 2. Nf3 {[%emt 0:01:33]} c5 {[%emt 0:02:31]} 3. e3 {[%emt 0:00:11]} e6 {[%emt 0:02:15]} 4. Bd3 {[%emt 0:00:48]} Nc6 {[%emt 0:01:21]} 5. b3 {[%emt 0:00:41]} b6 {[%emt 0:01:46]} 6. Bb2 {[%emt 0:00:08]} Bb7 {[%emt 0:00:31]} 7. O-O {[%emt 0:00:45]} d5 {[%emt 0:02:41]} 8. Nbd2 {[%emt 0:00:21]} cxd4 {[%emt 0:02:30]} 9. exd4 {[%emt 0:00:08]} Bd6 {[%emt 0:00:24]} 10. Ne5 {[%emt 0:00:47]} O-O {[%emt 0:04:23]} 11. a3 {[%emt 0:03:45]} Ne7 {[%emt 0:08:48]} 12. Qe2 {[%emt 0:02:34]} Nd7 {[%emt 0:18:51]} 13. f4 {[%emt 0:01:53]} Bxe5 {[%emt 0:01:02]} 14. fxe5 {[%emt 0:00:40]} Ng6 {[%emt 0:00:25]} 15. Rf3 {[%emt 0:02:16]} Qe7 {[%emt 0:16:44]} 16. Raf1 {[%emt 0:02:45]} Rae8 {[%emt 0:01:49]} 17. Rh3 {[%emt 0:02:32]} h6 {[%emt 0:07:07]} 18. Bc1 {[%emt 0:06:37]} f5 {[%emt 0:05:48]} 19. Nf3 {[%emt 0:07:29]} Rf7 {[%emt 0:02:34]} 20. Ne1 {[%emt 0:10:05]} Ndf8 {[%emt 0:02:59]} 21. Qh5 {[%emt 0:01:18]} Rc8 {[%emt 0:01:37]} 22. Nf3 {[%emt 0:09:56]} Qe8 {[%emt 0:03:11]} 23. g4 {[%emt 0:07:49]} Ne7 {[%emt 0:05:30]} 24. Ng5 {[%emt 0:01:15]} Bc6 {[%emt 0:01:29]} 25. Nxf7 {[%emt 0:01:12]} Qxf7 {[%emt 0:00:07]} 26. Qh4 {[%emt 0:00:29]} Nfg6 {[%emt 0:01:08]} 27. Qg3 {[%emt 0:00:26]} Bd7 {[%emt 0:02:08]} 28. g5 {[%emt 0:00:40]} h5 {[%emt 0:01:19]} 29. Rxh5 {[%emt 0:05:53]} Nxe5 {[%emt 0:01:36]} 30. Qh3 {[%emt 0:03:51]} N5g6 {[%emt 0:00:13]} 31. Qf3 {[%emt 0:00:30]} Be8 {[%emt 0:00:34]} 32. Rh3 {[%emt 0:00:29]} Bd7 {[%emt 0:01:05]} 33. Qh5 {[%emt 0:00:49]} Kf8 {[%emt 0:00:15]} 34. a4 {[%emt 0:00:42]} Ke8 {[%emt 0:00:41]} 35. Ba3 {[%emt 0:00:22]} Kd8 {[%emt 0:00:38]} 36. c4 {[%emt 0:00:22]} Nc6 {[%emt 0:01:11]} 37. cxd5 {[%emt 0:00:40]} exd5 {[%emt 0:00:07]} 38. Ba6 {[%emt 0:00:28]} Ra8 {[%emt 0:00:20]} 39. Rc3 {[%emt 0:03:00]} Nxd4 {[%emt 0:00:00]} 40. Qd1 {[%emt 0:00:00]} 1-0

[Event "FIDE World Junior U20-ch Girls 2025"]
[Site "Petrovac"]
[Date "2025.03.01"]
[Round "5.33"]
[White "Nguyen, Binh Vy"]
[Black "Cornileau, Juliette"]
[Result "1-0"]
[Annotator "NA"]
[ECO "C55"]
[WhiteElo "1926"]
[BlackElo "2144"]
[PlyCount "95"]
[EventDate "2025.02.23"]
[EventType "swiss"]
[EventCountry "MNE"]
[SourceTitle "playchess.com"]
[Source "ChessBase"]
[SourceQuality "1"]
[TimeControl "40/5400+30:1800+30"]

1. e4 {[%emt 0:00:06]} e5 {[%emt 0:00:23]} 2. Nf3 {[%emt 0:00:07]} Nc6 {[%emt 0:00:03]} 3. Bc4 {[%emt 0:00:13]} Nf6 {[%emt 0:00:05]} 4. d3 {[%emt 0:00:10]} h6 {[%emt 0:01:41]} 5. c3 {[%emt 0:00:55]} d6 {[%emt 0:00:07]} 6. Bb3 {[%emt 0:00:29]} a5 {[%emt 0:07:53]} 7. Nbd2 {[%emt 0:00:39]} g5 {[%emt 0:00:24]} 8. Nf1 {[%emt 0:04:58]} Bg7 {[%emt 0:10:23]} 9. a4 {[%emt 0:04:26]} d5 {[%emt 0:27:53]} 10. Qe2 {[%emt 0:05:10]} Be6 {[%emt 0:04:23]} 11. Bc2 {[%emt 0:04:53]} g4 {[%emt 0:10:52]} 12. N3d2 {[%emt 0:04:23]} d4 {[%emt 0:02:10]} 13. Bb3 {[%emt 0:10:07]} Bxb3 {[%emt 0:01:21]} 14. Nxb3 {[%emt 0:00:08]} Qe7 {[%emt 0:00:30]} 15. Ng3 {[%emt 0:01:23]} Bf8 {[%emt 0:10:53]} 16. Nf5 {[%emt 0:03:12]} Qd7 {[%emt 0:00:06]} 17. Bd2 {[%emt 0:03:23]} dxc3 {[%emt 0:02:45]} 18. bxc3 {[%emt 0:06:40]} Ne7 {[%emt 0:01:18]} 19. Ne3 {[%emt 0:03:06]} Ng6 {[%emt 0:00:31]} 20. Nc4 {[%emt 0:07:53]} Bg7 {[%emt 0:08:37]} 21. O-O {[%emt 0:07:34]} O-O {[%emt 0:02:35]} 22. f4 {[%emt 0:06:19]} exf4 {[%emt 0:01:39]} 23. Bxf4 {[%emt 0:00:09]} Nh5 {[%emt 0:01:25]} 24. Bd2 {[%emt 0:01:23]} Rae8 {[%emt 0:02:11]} 25. d4 {[%emt 0:11:13]} b6 {[%emt 0:00:30]} 26. Qd3 {[%emt 0:00:54]} Qe7 {[%emt 0:01:26]} 27. Rf5 {[%emt 0:01:44]} Nf6 {[%emt 0:00:44]} 28. e5 {[%emt 0:00:19]} Nd5 {[%emt 0:00:39]} 29. Raf1 {[%emt 0:01:01]} Qd7 {[%emt 0:00:48]} 30. Nb2 {[%emt 0:03:47]} Nde7 {[%emt 0:00:29]} 31. Rh5 {[%emt 0:00:51]} Kh7 {[%emt 0:00:32]} 32. Be3 {[%emt 0:01:01]} Nd5 {[%emt 0:00:41]} 33. Bd2 {[%emt 0:01:18]} Nde7 {[%emt 0:00:13]} 34. Nc1 {[%emt 0:00:24]} Rd8 {[%emt 0:00:24]} 35. Qe4 {[%emt 0:03:33]} c5 {[%emt 0:00:21]} 36. Ne2 {[%emt 0:00:15]} cxd4 {[%emt 0:01:00]} 37. cxd4 {[%emt 0:00:09]} Nd5 {[%emt 0:00:19]} 38. Ng3 {[%emt 0:01:10]} Nde7 {[%emt 0:00:22]} 39. Be3 {[%emt 0:00:40]} Qe6 {[%emt 0:00:31]} 40. Nd3 {[%emt 0:01:10]} Qd7 {[%emt 0:00:51]} 41. Nf2 {[%emt 0:31:47]} Nd5 {[%emt 0:04:07]} 42. Bxh6 {[%emt 0:00:00]} Bxh6 {[%emt 0:00:08]} 43. Nxg4 {[%emt 0:00:00]} Rh8 {[%emt 0:07:35]} 44. Rxh6+ {[%emt 0:00:00]} Kg8 {[%emt 0:00:17]} 45. Rxg6+ {[%emt 0:00:00]} fxg6 {[%emt 0:00:06]} 46. Qxg6+ {[%emt 0:00:00]} Qg7 {[%emt 0:00:08]} 47. Qe6+ {[%emt 0:00:00]} Kh7 {[%emt 0:00:18]} 48. Rf7 {[%emt 0:00:00]} 1-0

[Event "FIDE World Junior U20-ch Girls 2025"]
[Site "Petrovac"]
[Date "2025.03.01"]
[Round "5.34"]
[White "Li, Anna Sofie"]
[Black "Valcu, Lavinia"]
[Result "0-1"]
[Annotator "NA"]
[ECO "B90"]
[WhiteElo "2016"]
[BlackElo "2137"]
[PlyCount "54"]
[EventDate "2025.02.23"]
[EventType "swiss"]
[EventCountry "MNE"]
[SourceTitle "playchess.com"]
[Source "ChessBase"]
[SourceQuality "1"]
[TimeControl "40/5400+30:1800+30"]

1. e4 {[%emt 0:00:05]} c5 {[%emt 0:00:17]} 2. Nf3 {[%emt 0:00:13]} d6 {[%emt 0:00:07]} 3. d4 {[%emt 0:00:05]} cxd4 {[%emt 0:00:03]} 4. Nxd4 {[%emt 0:00:08]} Nf6 {[%emt 0:00:04]} 5. Nc3 {[%emt 0:00:07]} a6 {[%emt 0:00:04]} 6. f3 {[%emt 0:00:08]} e6 {[%emt 0:00:38]} 7. Be3 {[%emt 0:02:21]} b5 {[%emt 0:00:12]} 8. a3 {[%emt 0:01:49]} Bb7 {[%emt 0:05:01]} 9. g4 {[%emt 0:04:16]} h6 {[%emt 0:03:22]} 10. Qd2 {[%emt 0:09:23]} Nbd7 {[%emt 0:03:29]} 11. h4 {[%emt 0:02:25]} Rc8 {[%emt 0:06:22]} 12. O-O-O {[%emt 0:15:55]} Ne5 {[%emt 0:16:07]} 13. Be2 {[%emt 0:00:00]} b4 {[%emt 0:15:12]} 14. axb4 {[%emt 0:02:32]} d5 {[%emt 0:05:17]} 15. g5 {[%emt 0:12:41]} Nfd7 {[%emt 0:00:43]} 16. exd5 {[%emt 0:07:28]} Bxb4 {[%emt 0:00:14]} 17. dxe6 {[%emt 0:11:55]} fxe6 {[%emt 0:00:11]} 18. f4 {[%emt 0:04:48]} Bxc3 {[%emt 0:28:49]} 19. bxc3 {[%emt 0:01:04]} Qa5 {[%emt 0:00:20]} 20. Nb3 {[%emt 0:05:04]} Qa3+ {[%emt 0:00:12]} 21. Kb1 {[%emt 0:00:08]} Be4 {[%emt 0:00:52]} 22. Nd4 {[%emt 0:06:35]} Rxc3 {[%emt 0:05:47]} 23. fxe5 {[%emt 0:03:37]} O-O {[%emt 0:02:41]} 24. Qc1 {[%emt 0:04:06]} Rb8+ {[%emt 0:00:25]} 25. Bb5 {[%emt 0:00:07]} Rxb5+ {[%emt 0:00:09]} 26. Nxb5 {[%emt 0:00:07]} Rb3+ {[%emt 0:00:07]} 27. Qb2 {[%emt 0:00:06]} Qxb2# {[%emt 0:00:05]} 0-1

[Event "FIDE World Junior U20-ch Girls 2025"]
[Site "Petrovac"]
[Date "2025.03.01"]
[Round "5.35"]
[White "Vujatovic, Irina"]
[Black "Lindstad, Livia"]
[Result "0-1"]
[Annotator "NA"]
[ECO "B10"]
[WhiteElo "2042"]
[BlackElo "2017"]
[PlyCount "111"]
[EventDate "2025.02.23"]
[EventType "swiss"]
[EventCountry "MNE"]
[SourceTitle "playchess.com"]
[Source "ChessBase"]
[SourceQuality "1"]
[TimeControl "40/5400+30:1800+30"]

1. e4 {[%emt 0:00:03]} c6 {[%emt 0:00:24]} 2. Nf3 {[%emt 0:00:05]} d5 {[%emt 0:00:24]} 3. Nc3 {[%emt 0:00:08]} dxe4 {[%emt 0:00:23]} 4. Nxe4 {[%emt 0:00:07]} Nf6 {[%emt 0:00:18]} 5. Qe2 {[%emt 0:00:05]} Na6 {[%emt 0:01:55]} 6. d4 {[%emt 0:00:12]} Qd5 {[%emt 0:00:46]} 7. Nxf6+ {[%emt 0:00:11]} gxf6 {[%emt 0:00:09]} 8. Be3 {[%emt 0:00:05]} Bg4 {[%emt 0:00:58]} 9. c4 {[%emt 0:03:15]} Qh5 {[%emt 0:04:52]} 10. O-O-O {[%emt 0:03:26]} Bh6 {[%emt 0:10:39]} 11. Bxh6 {[%emt 0:01:58]} Qxh6+ {[%emt 0:00:10]} 12. Qe3 {[%emt 0:00:32]} Qxe3+ {[%emt 0:02:23]} 13. fxe3 {[%emt 0:00:00]} f5 {[%emt 0:04:24]} 14. Rd2 {[%emt 0:00:00]} Bxf3 {[%emt 0:03:38]} 15. gxf3 {[%emt 0:00:00]} O-O-O {[%emt 0:00:15]} 16. Bh3 {[%emt 0:14:48]} e6 {[%emt 0:18:34]} 17. e4 {[%emt 0:00:00]} fxe4 {[%emt 0:00:40]} 18. fxe4 {[%emt 0:00:00]} Kb8 {[%emt 0:00:45]} 19. a3 {[%emt 0:00:00]} e5 {[%emt 0:06:22]} 20. dxe5 {[%emt 0:00:00]} Nc5 {[%emt 0:02:25]} 21. Rxd8+ {[%emt 0:00:00]} Rxd8 {[%emt 0:00:12]} 22. Kc2 {[%emt 0:00:00]} Nxe4 {[%emt 0:05:58]} 23. Bf5 {[%emt 0:00:00]} Ng5 {[%emt 0:00:53]} 24. h4 {[%emt 0:00:00]} Nf3 {[%emt 0:00:16]} 25. Bxh7 {[%emt 0:00:30]} Rh8 {[%emt 0:03:32]} 26. Be4 {[%emt 0:00:26]} Nxe5 {[%emt 0:01:29]} 27. c5 {[%emt 0:02:05]} Ng4 {[%emt 0:02:46]} 28. Bf3 {[%emt 0:01:40]} f5 {[%emt 0:00:30]} 29. Kd2 {[%emt 0:03:32]} Ne5 {[%emt 0:04:31]} 30. Ke3 {[%emt 0:01:12]} Kc7 {[%emt 0:06:00]} 31. h5 {[%emt 0:01:13]} Kd7 {[%emt 0:01:34]} 32. Kf4 {[%emt 0:01:29]} Nd3+ {[%emt 0:00:50]} 33. Ke3 {[%emt 0:03:50]} Nxc5 {[%emt 0:01:16]} 34. Rd1+ {[%emt 0:03:27]} Ke7 {[%emt 0:01:16]} 35. Kf4 {[%emt 0:01:33]} Kf6 {[%emt 0:00:24]} 36. b4 {[%emt 0:10:45]} Ne6+ {[%emt 0:00:09]} 37. Kg3 {[%emt 0:01:30]} Ng5 {[%emt 0:03:06]} 38. Bg2 {[%emt 0:09:46]} Rxh5 {[%emt 0:00:52]} 39. Rd7 {[%emt 0:01:56]} Rh7 {[%emt 0:00:33]} 40. Rxh7 {[%emt 0:00:22]} Nxh7 {[%emt 0:00:08]} 41. b5 {[%emt 0:31:30]} cxb5 {[%emt 0:32:40]} 42. Bxb7 {[%emt 0:00:06]} a5 {[%emt 0:00:16]} 43. Kf4 {[%emt 0:00:40]} Ng5 {[%emt 0:00:37]} 44. Ke3 {[%emt 0:00:37]} Ke5 {[%emt 0:01:07]} 45. Kd3 {[%emt 0:02:23]} Ne6 {[%emt 0:01:47]} 46. Kc3 {[%emt 0:03:49]} f4 {[%emt 0:01:13]} 47. Bg2 {[%emt 0:01:21]} Nd4 {[%emt 0:00:36]} 48. Bf1 {[%emt 0:00:06]} f3 {[%emt 0:00:56]} 49. Kd3 {[%emt 0:01:37]} Kd5 {[%emt 0:00:34]} 50. Ke3 {[%emt 0:01:01]} Kc5 {[%emt 0:00:29]} 51. Bd3 {[%emt 0:00:57]} a4 {[%emt 0:03:49]} 52. Be4 {[%emt 0:04:41]} b4 {[%emt 0:02:23]} 53. axb4+ {[%emt 0:00:27]} Kxb4 {[%emt 0:00:12]} 54. Kd3 {[%emt 0:01:37]} a3 {[%emt 0:00:31]} 55. Bd5 {[%emt 0:00:18]} f2 {[%emt 0:00:08]} 56. Kxd4 {[%emt 0:00:31]} 0-1

[Event "FIDE World Junior U20-ch Girls 2025"]
[Site "Petrovac"]
[Date "2025.03.01"]
[Round "5.36"]
[White "Radenkovic, Mila"]
[Black "Hernandez Diaz, Paula Sofia"]
[Result "1/2-1/2"]
[Annotator "NA"]
[ECO "A04"]
[WhiteElo "2027"]
[BlackElo "1972"]
[PlyCount "126"]
[EventDate "2025.02.23"]
[EventType "swiss"]
[EventCountry "MNE"]
[SourceTitle "playchess.com"]
[Source "ChessBase"]
[SourceQuality "1"]
[TimeControl "40/5400+30:1800+30"]

1. Nf3 {[%emt 0:00:01]} c5 {[%emt 0:00:07]} 2. g3 {[%emt 0:00:08]} Nc6 {[%emt 0:00:13]} 3. Bg2 {[%emt 0:00:05]} g6 {[%emt 0:00:19]} 4. O-O {[%emt 0:00:15]} Bg7 {[%emt 0:00:06]} 5. Re1 {[%emt 0:00:44]} e5 {[%emt 0:01:00]} 6. e4 {[%emt 0:00:43]} Nge7 {[%emt 0:00:32]} 7. d3 {[%emt 0:00:42]} O-O {[%emt 0:00:54]} 8. c3 {[%emt 0:01:42]} d6 {[%emt 0:00:20]} 9. Be3 {[%emt 0:04:42]} h6 {[%emt 0:04:04]} 10. Qd2 {[%emt 0:04:24]} Kh7 {[%emt 0:00:20]} 11. d4 {[%emt 0:00:32]} cxd4 {[%emt 0:12:21]} 12. cxd4 {[%emt 0:00:06]} f5 {[%emt 0:00:27]} 13. exf5 {[%emt 0:17:19]} Nxf5 {[%emt 0:04:58]} 14. dxe5 {[%emt 0:00:00]} Nxe3 {[%emt 0:09:23]} 15. Rxe3 {[%emt 0:00:00]} dxe5 {[%emt 0:00:24]} 16. Nc3 {[%emt 0:03:35]} Bg4 {[%emt 0:03:04]} 17. Rd3 {[%emt 0:22:14]} Qe7 {[%emt 0:08:00]} 18. Ne1 {[%emt 0:02:52]} Nb4 {[%emt 0:05:41]} 19. Nd5 {[%emt 0:00:24]} Nxd5 {[%emt 0:00:21]} 20. Rxd5 {[%emt 0:01:10]} Be6 {[%emt 0:01:54]} 21. Rd3 {[%emt 0:02:38]} Rad8 {[%emt 0:01:47]} 22. Be4 {[%emt 0:00:33]} Bf5 {[%emt 0:00:42]} 23. Bxf5 {[%emt 0:01:12]} gxf5 {[%emt 0:00:02]} 24. Rd1 {[%emt 0:00:15]} Rxd3 {[%emt 0:01:01]} 25. Qxd3 {[%emt 0:00:48]} Qb4 {[%emt 0:03:26]} 26. a3 {[%emt 0:04:34]} Qb6 {[%emt 0:01:32]} 27. b3 {[%emt 0:01:13]} Kh8 {[%emt 0:02:11]} 28. Ng2 {[%emt 0:01:34]} f4 {[%emt 0:06:42]} 29. Rd2 {[%emt 0:05:36]} fxg3 {[%emt 0:03:37]} 30. hxg3 {[%emt 0:00:02]} Qd4 {[%emt 0:01:38]} 31. Qxd4 {[%emt 0:03:38]} exd4 {[%emt 0:00:01]} 32. Nf4 {[%emt 0:00:08]} Rc8 {[%emt 0:03:25]} 33. Ne2 {[%emt 0:01:46]} Rd8 {[%emt 0:01:05]} 34. Kg2 {[%emt 0:00:59]} Kh7 {[%emt 0:00:28]} 35. f4 {[%emt 0:01:04]} Kg6 {[%emt 0:01:13]} 36. Rd3 {[%emt 0:03:03]} h5 {[%emt 0:01:14]} 37. Kf3 {[%emt 0:05:05]} Kf5 {[%emt 0:01:04]} 38. Ng1 {[%emt 0:00:47]} Bf6 {[%emt 0:01:13]} 39. Nh3 {[%emt 0:00:16]} Rc8 {[%emt 0:02:01]} 40. Nf2 {[%emt 0:01:06]} Rc3 {[%emt 0:04:58]} 41. Ke2 {[%emt 0:41:58]} Rc2+ {[%emt 0:30:46]} 42. Kf3 {[%emt 0:00:14]} Rc3 {[%emt 0:07:18]} 43. a4 {[%emt 0:00:00]} a5 {[%emt 0:00:00]} 44. Rxc3 {[%emt 0:00:00]} dxc3 {[%emt 0:00:00]} 45. Ke3 {[%emt 0:00:00]} c2 {[%emt 0:00:00]} 46. Kd2 {[%emt 0:00:00]} Bd4 {[%emt 0:00:00]} 47. Nd3 {[%emt 0:00:00]} Kg4 {[%emt 0:00:00]} 48. Nc1 {[%emt 0:00:00]} Kf3 {[%emt 0:00:00]} 49. f5 {[%emt 0:00:00]} Bf6 {[%emt 0:00:00]} 50. Kxc2 {[%emt 0:00:00]} Kxg3 {[%emt 0:00:00]} 51. Kd3 {[%emt 0:00:00]} Kf3 {[%emt 0:00:00]} 52. Ne2 {[%emt 0:00:00]} h4 {[%emt 0:00:00]} 53. Ng1+ {[%emt 0:00:00]} Kg2 {[%emt 0:00:00]} 54. Ne2 {[%emt 0:00:00]} h3 {[%emt 0:00:00]} 55. Nf4+ {[%emt 0:00:00]} Kg3 {[%emt 0:00:00]} 56. Nxh3 {[%emt 0:00:00]} Kxh3 {[%emt 0:00:00]} 57. Kc4 {[%emt 0:00:00]} b6 {[%emt 0:00:00]} 58. Kb5 {[%emt 0:00:00]} Bd4 {[%emt 0:00:00]} 59. b4 {[%emt 0:00:00]} axb4 {[%emt 0:00:00]} 60. Kxb4 {[%emt 0:00:00]} Kg4 {[%emt 0:00:00]} 61. a5 {[%emt 0:00:00]} bxa5+ {[%emt 0:00:00]} 62. Kxa5 {[%emt 0:00:00]} Kxf5 {[%emt 0:00:00]} 63. Kb5 {[%emt 0:00:00]} Ke5 {[%emt 0:00:00]} 1/2-1/2

[Event "FIDE World Junior U20-ch Girls 2025"]
[Site "Petrovac"]
[Date "2025.03.01"]
[Round "5.37"]
[White "Shohradova, Lala"]
[Black "Seyilhanova, Gulmira"]
[Result "0-1"]
[Annotator "NA"]
[ECO "E71"]
[WhiteElo "2025"]
[BlackElo "1939"]
[PlyCount "106"]
[EventDate "2025.02.23"]
[EventType "swiss"]
[EventCountry "MNE"]
[SourceTitle "playchess.com"]
[Source "ChessBase"]
[SourceQuality "1"]
[TimeControl "40/5400+30:1800+30"]

1. d4 {[%emt 0:00:03]} Nf6 {[%emt 0:00:06]} 2. c4 {[%emt 0:00:04]} g6 {[%emt 0:00:19]} 3. Nc3 {[%emt 0:00:06]} Bg7 {[%emt 0:00:09]} 4. e4 {[%emt 0:00:04]} d6 {[%emt 0:00:04]} 5. h3 {[%emt 0:00:34]} Nc6 {[%emt 0:00:49]} 6. Be3 {[%emt 0:02:45]} O-O {[%emt 0:01:12]} 7. d5 {[%emt 0:04:01]} Nb8 {[%emt 0:02:27]} 8. g4 {[%emt 0:00:43]} c6 {[%emt 0:03:55]} 9. g5 {[%emt 0:08:13]} Nfd7 {[%emt 0:00:31]} 10. h4 {[%emt 0:01:36]} cxd5 {[%emt 0:00:45]} 11. cxd5 {[%emt 0:00:51]} b5 12. Bxb5 {[%emt 0:04:17]} Qa5 {[%emt 0:16:48]} 13. Be2 {[%emt 0:01:00]} Na6 {[%emt 0:05:18]} 14. Bd4 {[%emt 0:24:18]} Qb4 {[%emt 0:06:40]} 15. Nf3 {[%emt 0:06:30]} Ne5 {[%emt 0:14:55]} 16. Nxe5 {[%emt 0:13:43]} Bxe5 {[%emt 0:06:04]} 17. Bxe5 {[%emt 0:00:20]} dxe5 {[%emt 0:00:02]} 18. Rb1 {[%emt 0:07:41]} Nc5 {[%emt 0:01:30]} 19. a3 {[%emt 0:00:44]} Qb3 {[%emt 0:04:26]} 20. Qd2 {[%emt 0:02:20]} Rb8 {[%emt 0:04:03]} 21. h5 {[%emt 0:01:44]} Rb6 {[%emt 0:03:49]} 22. Qe3 {[%emt 0:01:58]} Nb7 {[%emt 0:15:40]} 23. Qg3 {[%emt 0:01:17]} f5 {[%emt 0:08:18]} 24. Qxe5 {[%emt 0:09:04]} fxe4 {[%emt 0:03:37]} 25. h6 {[%emt 0:07:17]} Rf7 {[%emt 0:00:05]} 26. Bd1 {[%emt 0:00:55]} Qc4 {[%emt 0:00:09]} 27. Be2 {[%emt 0:00:25]} Qc5 {[%emt 0:01:44]} 28. Nxe4 {[%emt 0:00:06]} Qc2 {[%emt 0:00:20]} 29. O-O {[%emt 0:01:10]} Bf5 {[%emt 0:00:37]} 30. Rfc1 {[%emt 0:00:23]} Qa4 {[%emt 0:00:35]} 31. Ng3 {[%emt 0:00:43]} Nd6 {[%emt 0:00:24]} 32. Rc7 {[%emt 0:00:35]} Bxb1 {[%emt 0:00:36]} 33. Rxe7 {[%emt 0:00:51]} Qf4 {[%emt 0:00:29]} 34. Qxf4 {[%emt 0:00:35]} Rxf4 {[%emt 0:00:02]} 35. Rg7+ {[%emt 0:00:20]} Kh8 {[%emt 0:00:58]} 36. Rxa7 {[%emt 0:00:02]} Rf8 {[%emt 0:00:09]} 37. b4 {[%emt 0:00:06]} Ne4 {[%emt 0:00:51]} 38. Nxe4 {[%emt 0:00:34]} Bxe4 {[%emt 0:00:02]} 39. Rd7 {[%emt 0:00:00]} Rbb8 {[%emt 0:00:29]} 40. b5 {[%emt 0:00:20]} Rf5 {[%emt 0:00:48]} 41. d6 {[%emt 0:30:04]} Rxg5+ {[%emt 0:30:33]} 42. Kf1 {[%emt 0:00:01]} Rd5 {[%emt 0:00:00]} 43. a4 {[%emt 0:00:00]} Bf5 {[%emt 0:00:00]} 44. Rc7 {[%emt 0:00:00]} Rxd6 {[%emt 0:00:00]} 45. a5 {[%emt 0:00:00]} g5 {[%emt 0:00:00]} 46. a6 {[%emt 0:00:00]} Be4 {[%emt 0:00:00]} 47. a7 {[%emt 0:00:00]} Rf8 {[%emt 0:00:00]} 48. Rc4 {[%emt 0:00:00]} Ba8 {[%emt 0:00:00]} 49. Rb4 {[%emt 0:00:00]} Rxh6 {[%emt 0:00:00]} 50. Bd3 {[%emt 0:00:00]} Bf3 {[%emt 0:00:00]} 51. Ke1 {[%emt 0:00:00]} Rd6 {[%emt 0:00:00]} 52. Bc2 {[%emt 0:00:00]} Re8+ {[%emt 0:00:00]} 53. Kf1 {[%emt 0:00:00]} Rh6 {[%emt 0:00:00]} 0-1

[Event "FIDE World Junior U20-ch Girls 2025"]
[Site "Petrovac"]
[Date "2025.03.01"]
[Round "5.38"]
[White "Sovetbekova, Nurai"]
[Black "Canino, Ruelle"]
[Result "1-0"]
[Annotator "NA"]
[ECO "A40"]
[WhiteElo "1940"]
[BlackElo "2179"]
[PlyCount "93"]
[EventDate "2025.02.23"]
[EventType "swiss"]
[EventCountry "MNE"]
[SourceTitle "playchess.com"]
[Source "ChessBase"]
[SourceQuality "1"]
[TimeControl "40/5400+30:1800+30"]

1. d4 {[%emt 0:00:04]} g6 {[%emt 0:00:06]} 2. Nf3 {[%emt 0:00:05]} Bg7 {[%emt 0:00:09]} 3. g3 {[%emt 0:00:06]} d6 {[%emt 0:00:23]} 4. Bg2 {[%emt 0:00:06]} Nd7 {[%emt 0:00:05]} 5. O-O {[%emt 0:00:13]} e5 {[%emt 0:00:38]} 6. c4 {[%emt 0:00:08]} Ne7 {[%emt 0:00:46]} 7. dxe5 {[%emt 0:00:10]} dxe5 {[%emt 0:00:11]} 8. Qc2 {[%emt 0:00:07]} c6 {[%emt 0:01:15]} 9. Nc3 {[%emt 0:01:00]} Qc7 {[%emt 0:02:02]} 10. Rd1 {[%emt 0:05:34]} O-O {[%emt 0:01:29]} 11. b3 {[%emt 0:01:40]} Nf5 {[%emt 0:06:14]} 12. e3 {[%emt 0:07:22]} Re8 {[%emt 0:04:00]} 13. Bb2 {[%emt 0:10:01]} Nf8 {[%emt 0:06:57]} 14. Ne4 {[%emt 0:04:30]} h5 {[%emt 0:08:59]} 15. c5 {[%emt 0:07:58]} Qe7 {[%emt 0:02:52]} 16. Rd2 {[%emt 0:11:24]} Nh6 {[%emt 0:05:09]} 17. Nd6 {[%emt 0:06:36]} Rd8 {[%emt 0:00:24]} 18. Rad1 {[%emt 0:01:34]} Bg4 {[%emt 0:01:22]} 19. h3 {[%emt 0:03:55]} Bxf3 20. Bxf3 {[%emt 0:00:04]} Ne6 {[%emt 0:02:43]} 21. b4 {[%emt 0:05:59]} Rab8 {[%emt 0:05:10]} 22. Be2 {[%emt 0:05:32]} Ng5 {[%emt 0:13:06]} 23. h4 {[%emt 0:03:03]} Ne6 {[%emt 0:02:19]} 24. Nc4 {[%emt 0:10:37]} Rxd2 {[%emt 0:05:24]} 25. Rxd2 {[%emt 0:00:01]} Nc7 {[%emt 0:00:39]} 26. a3 {[%emt 0:04:39]} f5 {[%emt 0:06:59]} 27. Rd6 {[%emt 0:04:28]} Kh7 {[%emt 0:01:52]} 28. Qd3 {[%emt 0:02:37]} e4 {[%emt 0:08:50]} 29. Rd7 {[%emt 0:02:30]} exd3 {[%emt 0:04:11]} 30. Rxe7 {[%emt 0:00:02]} Ne8 {[%emt 0:01:14]} 31. Bxd3 {[%emt 0:00:53]} Ng8 {[%emt 0:01:19]} 32. Rf7 {[%emt 0:01:06]} Ngf6 {[%emt 0:03:16]} 33. Nd6 {[%emt 0:01:08]} Kg8 {[%emt 0:01:17]} 34. Bxf6 {[%emt 0:01:14]} Nxf6 {[%emt 0:01:42]} 35. Bc4 {[%emt 0:00:11]} Kh8 {[%emt 0:00:11]} 36. Rxb7 {[%emt 0:00:16]} Rxb7 {[%emt 0:00:48]} 37. Nxb7 {[%emt 0:00:01]} Ne4 {[%emt 0:00:23]} 38. Nd8 {[%emt 0:01:13]} Bb2 {[%emt 0:00:45]} 39. a4 {[%emt 0:01:03]} a5 {[%emt 0:02:25]} 40. bxa5 {[%emt 0:00:46]} Nxc5 {[%emt 0:01:14]} 41. a6 {[%emt 0:05:48]} Nxa4 {[%emt 0:00:08]} 42. a7 {[%emt 0:00:20]} Nb6 {[%emt 0:00:04]} 43. Nxc6 {[%emt 0:00:10]} Kg7 {[%emt 0:01:18]} 44. Ba6 {[%emt 0:04:24]} Kf6 {[%emt 0:00:49]} 45. Nb4 {[%emt 0:03:35]} Ke6 {[%emt 0:00:41]} 46. Bb7 {[%emt 0:00:10]} Ba3 {[%emt 0:00:27]} 47. Nc2 {[%emt 0:01:50]} 1-0